[Event "Titled Tuesday Blitz November 01 Early 2022"]
[White "Nakamura, Hikaru"]
[Black "Jobava, Baadur"]
[WhiteFideId "2016192"]
[BlackFideId "13601520"]
[WhiteElo "3241"]
[BlackElo "3104"]
[Result "1-0"]
[Round "08"]
[TimeControl "180+1"]
[Date "2022.11.01"]
[WhiteClock "0:00:21"]
[BlackClock "0:00:07"]

1. d4 {[%clk 0:03:00]}  Nf6 {[%clk 0:03:00]} 2. Bg5 {[%clk 0:03:00]}  e6 {[%clk 0:03:00]} 3. e4 {[%clk 0:02:59]}  h6 {[%clk 0:03:00]} 4. Bxf6 {[%clk 0:03:00]}  Qxf6 {[%clk 0:03:01]} 5. c3 {[%clk 0:03:00]}  b6 {[%clk 0:03:01]} 6. g3 {[%clk 0:02:56]}  Bb7 {[%clk 0:03:01]} 7. Bg2 {[%clk 0:02:57]}  Qd8 {[%clk 0:03:00]} 8. Nd2 {[%clk 0:02:49]}  Be7 {[%clk 0:03:00]} 9. Ne2 {[%clk 0:02:41]}  O-O {[%clk 0:03:00]} 10. O-O {[%clk 0:02:41]}  d5 {[%clk 0:03:01]} 11. Re1 {[%clk 0:02:27]}  Re8 {[%clk 0:02:43]} 12. exd5 {[%clk 0:02:13]}  Bxd5 {[%clk 0:02:43]} 13. Bxd5 {[%clk 0:02:12]}  Qxd5 {[%clk 0:02:43]} 14. Nf4 {[%clk 0:02:13]}  Qd7 {[%clk 0:02:39]} 15. Qg4 {[%clk 0:02:08]}  e5 {[%clk 0:01:54]} 16. Qxd7 {[%clk 0:01:57]}  Nxd7 {[%clk 0:01:55]} 17. dxe5 {[%clk 0:01:58]}  Bg5 {[%clk 0:01:56]} 18. Nf3 {[%clk 0:01:56]}  Rad8 {[%clk 0:01:43]} 19. Nd3 {[%clk 0:01:23]}  c5 {[%clk 0:01:36]} 20. Rad1 {[%clk 0:01:22]}  c4 {[%clk 0:01:34]} 21. Nb4 {[%clk 0:01:20]}  Nxe5 {[%clk 0:01:31]} 22. Nxe5 {[%clk 0:01:19]}  Rxd1 {[%clk 0:01:29]} 23. Rxd1 {[%clk 0:01:20]}  Rxe5 {[%clk 0:01:27]} 24. f4 {[%clk 0:01:20]}  Re2 {[%clk 0:01:28]} 25. fxg5 {[%clk 0:01:20]}  Rxb2 {[%clk 0:01:25]} 26. gxh6 {[%clk 0:01:19]}  gxh6 {[%clk 0:01:23]} 27. Rd7 {[%clk 0:01:11]}  a5 {[%clk 0:01:22]} 28. Nd5 {[%clk 0:01:11]}  b5 {[%clk 0:01:23]} 29. Rb7 {[%clk 0:01:11]}  Kg7 {[%clk 0:01:18]} 30. a4 {[%clk 0:01:01]}  b4 {[%clk 0:01:14]} 31. cxb4 {[%clk 0:01:02]}  Rd2 {[%clk 0:00:58]} 32. Rb5 {[%clk 0:00:48]}  axb4 {[%clk 0:00:58]} 33. Nxb4 {[%clk 0:00:49]}  c3 {[%clk 0:00:58]} 34. Rc5 {[%clk 0:00:49]}  Rd4 {[%clk 0:00:57]} 35. Rxc3 {[%clk 0:00:31]}  Rxb4 {[%clk 0:00:57]} 36. Ra3 {[%clk 0:00:31]}  Rb6 {[%clk 0:00:54]} 37. a5 {[%clk 0:00:32]}  Ra6 {[%clk 0:00:55]} 38. Kg2 {[%clk 0:00:32]}  Kf6 {[%clk 0:00:54]} 39. Kf3 {[%clk 0:00:33]}  Ke5 {[%clk 0:00:55]} 40. Ra1 {[%clk 0:00:32]}  h5 {[%clk 0:00:46]} 41. Ra4 {[%clk 0:00:29]}  Kf5 {[%clk 0:00:42]} 42. h4 {[%clk 0:00:25]}  Ke5 {[%clk 0:00:41]} 43. g4 {[%clk 0:00:25]}  hxg4+ {[%clk 0:00:38]} 44. Kxg4 {[%clk 0:00:26]}  f5+ {[%clk 0:00:23]} 45. Kf3 {[%clk 0:00:25]}  Kf6 {[%clk 0:00:17]} 46. Kf4 {[%clk 0:00:24]}  Kg6 {[%clk 0:00:17]} 47. Ra1 {[%clk 0:00:22]}  Kh5 {[%clk 0:00:11]} 48. Kxf5 {[%clk 0:00:21]}  Kxh4 {[%clk 0:00:11]} 49. Ke5 {[%clk 0:00:20]}  Kg5 {[%clk 0:00:12]} 50. Kd5 {[%clk 0:00:21]}  Kf6 {[%clk 0:00:12]} 51. Kc5 {[%clk 0:00:21]}  Ke7 {[%clk 0:00:11]} 52. Kb5 {[%clk 0:00:22]}  Ra8 {[%clk 0:00:10]} 53. a6 {[%clk 0:00:19]}  Kd6 {[%clk 0:00:09]} 54. a7 {[%clk 0:00:19]}  Kc7 {[%clk 0:00:07]} 55. Ka6 {[%clk 0:00:19]}  Rg8 {[%clk 0:00:07]} 56. Rc1+ {[%clk 0:00:20]}  Kd6 {[%clk 0:00:07]} 57. Kb7 {[%clk 0:00:20]}  Rg7+ {[%clk 0:00:07]} 58. Kb8 {[%clk 0:00:21]}  Rg8+ {[%clk 0:00:07]} 59. Rc8 {[%clk 0:00:20]}  Rxc8+ {[%clk 0:00:07]} 60. Kxc8 {[%clk 0:00:21]} 1-0


[Site "https://www.chess.com"]

[Event "Titled Tuesday Blitz November 01 Early 2022"]
[White "Namitbir Singh Walia"]
[Black "Johnson, Ben"]
[WhiteFideId "35071068"]
[BlackFideId "2010917"]
[WhiteElo "2239"]
[BlackElo "2127"]
[Result "1-0"]
[Round "08"]
[TimeControl "180+1"]
[Date "2022.11.02"]
[WhiteClock "0:01:39"]
[BlackClock "0:00:01"]

1. d4 {[%clk 0:03:00]}  Nf6 {[%clk 0:02:58]} 2. c4 {[%clk 0:03:01]}  e6 {[%clk 0:02:59]} 3. Nf3 {[%clk 0:03:02]}  d5 {[%clk 0:02:58]} 4. g3 {[%clk 0:03:02]}  dxc4 {[%clk 0:02:58]} 5. Bg2 {[%clk 0:03:02]}  c5 {[%clk 0:02:57]} 6. O-O {[%clk 0:02:56]}  Nc6 {[%clk 0:02:53]} 7. dxc5 {[%clk 0:02:45]}  Qxd1 {[%clk 0:02:50]} 8. Rxd1 {[%clk 0:02:43]}  Bxc5 {[%clk 0:02:46]} 9. Nbd2 {[%clk 0:02:43]}  c3 {[%clk 0:02:38]} 10. bxc3 {[%clk 0:02:43]}  O-O {[%clk 0:02:38]} 11. Nb3 {[%clk 0:02:39]}  Be7 {[%clk 0:02:38]} 12. a4 {[%clk 0:02:38]}  e5 {[%clk 0:02:16]} 13. a5 {[%clk 0:02:31]}  a6 {[%clk 0:02:11]} 14. Be3 {[%clk 0:02:04]}  Rd8 {[%clk 0:01:32]} 15. Bb6 {[%clk 0:02:03]}  Rxd1+ {[%clk 0:01:16]} 16. Rxd1 {[%clk 0:02:04]}  Nd7 {[%clk 0:01:13]} 17. Nfd2 {[%clk 0:01:47]}  Nxb6 {[%clk 0:01:07]} 18. axb6 {[%clk 0:01:47]}  a5 {[%clk 0:01:00]} 19. Bxc6 {[%clk 0:01:46]}  bxc6 {[%clk 0:01:00]} 20. Nc4 {[%clk 0:01:46]}  a4 {[%clk 0:00:27]} 21. Nba5 {[%clk 0:01:47]}  Ba6 {[%clk 0:00:06]} 22. b7 {[%clk 0:01:46]}  Bxb7 {[%clk 0:00:03]} 23. Nxe5 {[%clk 0:01:46]}  Rxa5 {[%clk 0:00:02]} 24. Nc4 {[%clk 0:01:39]}  Ra8 {[%clk 0:00:01]} 25. Rd7 {[%clk 0:01:39]} 1-0


[Site "https://www.chess.com"]

[Event "Titled Tuesday Blitz November 01 Early 2022"]
[White "Narayanan, Srinath"]
[Black "Mladenovic, Stefan"]
[WhiteFideId "5018420"]
[BlackFideId "942227"]
[WhiteElo "2459"]
[BlackElo "2337"]
[Result "1-0"]
[Round "08"]
[TimeControl "180+1"]
[Date "2022.11.01"]
[WhiteClock "0:00:09"]
[BlackClock "0:00:11"]

1. d4 {[%clk 0:03:00]}  Nf6 {[%clk 0:02:57]} 2. Bf4 {[%clk 0:03:00]}  e6 {[%clk 0:02:58]} 3. e3 {[%clk 0:02:59]}  c5 {[%clk 0:02:58]} 4. Nd2 {[%clk 0:02:53]}  cxd4 {[%clk 0:02:59]} 5. exd4 {[%clk 0:02:53]}  b6 {[%clk 0:02:59]} 6. Ngf3 {[%clk 0:02:51]}  Bb7 {[%clk 0:02:59]} 7. a4 {[%clk 0:02:52]}  a6 {[%clk 0:02:59]} 8. Bd3 {[%clk 0:02:42]}  Be7 {[%clk 0:02:59]} 9. O-O {[%clk 0:02:40]}  O-O {[%clk 0:02:59]} 10. Qe2 {[%clk 0:02:38]}  d6 {[%clk 0:02:59]} 11. a5 {[%clk 0:02:34]}  bxa5 {[%clk 0:02:52]} 12. Nb3 {[%clk 0:02:31]}  Nc6 {[%clk 0:02:50]} 13. Bd2 {[%clk 0:02:31]}  Nd5 {[%clk 0:02:40]} 14. Nxa5 {[%clk 0:02:29]}  Nxa5 {[%clk 0:02:32]} 15. Bxa5 {[%clk 0:02:30]}  Qd7 {[%clk 0:02:30]} 16. Qd2 {[%clk 0:02:27]}  Nf6 {[%clk 0:02:17]} 17. Qe3 {[%clk 0:02:25]}  Nd5 {[%clk 0:02:13]} 18. Qe4 {[%clk 0:02:17]}  f5 {[%clk 0:02:05]} 19. Qe2 {[%clk 0:02:08]}  Nf4 {[%clk 0:02:05]} 20. Qe3 {[%clk 0:02:07]}  Nxd3 {[%clk 0:01:57]} 21. Qxd3 {[%clk 0:02:08]}  Bf6 {[%clk 0:01:54]} 22. Nd2 {[%clk 0:02:04]}  Qc6 {[%clk 0:01:52]} 23. f3 {[%clk 0:02:01]}  g6 {[%clk 0:01:46]} 24. Bc3 {[%clk 0:01:50]}  e5 {[%clk 0:01:46]} 25. dxe5 {[%clk 0:01:38]}  dxe5 {[%clk 0:01:46]} 26. Qc4+ {[%clk 0:01:38]}  Kg7 {[%clk 0:01:44]} 27. Qxc6 {[%clk 0:01:33]}  Bxc6 {[%clk 0:01:45]} 28. Rfe1 {[%clk 0:01:34]}  Rfe8 {[%clk 0:01:42]} 29. Nc4 {[%clk 0:01:33]}  e4 {[%clk 0:01:37]} 30. Bxf6+ {[%clk 0:01:07]}  Kxf6 {[%clk 0:01:38]} 31. f4 {[%clk 0:01:07]}  Red8 {[%clk 0:01:35]} 32. Ne3 {[%clk 0:01:02]}  a5 {[%clk 0:01:29]} 33. Red1 {[%clk 0:00:57]}  a4 {[%clk 0:01:29]} 34. Kf2 {[%clk 0:00:56]}  Ke6 {[%clk 0:01:28]} 35. Ke1 {[%clk 0:00:43]}  Rdb8 {[%clk 0:01:25]} 36. Ra2 {[%clk 0:00:39]}  Rb4 {[%clk 0:01:19]} 37. c3 {[%clk 0:00:37]}  Rb7 {[%clk 0:01:12]} 38. Rd4 {[%clk 0:00:35]}  Rab8 {[%clk 0:01:11]} 39. Rd2 {[%clk 0:00:24]}  g5 {[%clk 0:00:27]} 40. g3 {[%clk 0:00:22]}  gxf4 {[%clk 0:00:25]} 41. gxf4 {[%clk 0:00:23]}  Rg7 {[%clk 0:00:25]} 42. Kf2 {[%clk 0:00:23]}  Rbg8 {[%clk 0:00:19]} 43. Ra1 {[%clk 0:00:23]}  Rb8 {[%clk 0:00:15]} 44. Rad1 {[%clk 0:00:23]}  Rd7 {[%clk 0:00:10]} 45. Nc4 {[%clk 0:00:21]}  Rd5 {[%clk 0:00:07]} 46. Ke3 {[%clk 0:00:19]}  a3 {[%clk 0:00:05]} 47. Nxa3 {[%clk 0:00:18]}  Rxb2 {[%clk 0:00:05]} 48. Rxb2 {[%clk 0:00:16]}  Rxd1 {[%clk 0:00:05]} 49. Rb6 {[%clk 0:00:16]}  Kd7 {[%clk 0:00:04]} 50. Nc4 {[%clk 0:00:16]}  Rd3+ {[%clk 0:00:04]} 51. Kf2 {[%clk 0:00:16]}  Rxc3 {[%clk 0:00:05]} 52. Ne5+ {[%clk 0:00:16]}  Kc7 {[%clk 0:00:05]} 53. Ra6 {[%clk 0:00:15]}  Rc2+ {[%clk 0:00:05]} 54. Ke3 {[%clk 0:00:15]}  Bb7 {[%clk 0:00:04]} 55. Rh6 {[%clk 0:00:15]}  Rc3+ {[%clk 0:00:04]} 56. Kd4 {[%clk 0:00:15]}  Rc1 {[%clk 0:00:03]} 57. Rxh7+ {[%clk 0:00:15]}  Kb6 {[%clk 0:00:04]} 58. Nc4+ {[%clk 0:00:10]}  Ka6 {[%clk 0:00:03]} 59. Rh6+ {[%clk 0:00:10]}  Ka7 {[%clk 0:00:03]} 60. Nd6 {[%clk 0:00:09]}  Bc6 {[%clk 0:00:03]} 61. Nxf5 {[%clk 0:00:08]}  Rd1+ {[%clk 0:00:02]} 62. Kc3 {[%clk 0:00:08]}  Rd3+ {[%clk 0:00:02]} 63. Kc2 {[%clk 0:00:08]}  Rf3 {[%clk 0:00:03]} 64. Rxc6 {[%clk 0:00:08]}  Rxf4 {[%clk 0:00:03]} 65. Ne3 {[%clk 0:00:06]}  Rf2+ {[%clk 0:00:04]} 66. Kc3 {[%clk 0:00:06]}  Rxh2 {[%clk 0:00:04]} 67. Kd4 {[%clk 0:00:07]}  Kb7 {[%clk 0:00:05]} 68. Re6 {[%clk 0:00:07]}  Rd2+ {[%clk 0:00:05]} 69. Kc5 {[%clk 0:00:06]}  Rd3 {[%clk 0:00:04]} 70. Nd5 {[%clk 0:00:06]}  Rd1 {[%clk 0:00:04]} 71. Re7+ {[%clk 0:00:07]}  Kc8 {[%clk 0:00:04]} 72. Kd6 {[%clk 0:00:06]}  e3 {[%clk 0:00:04]} 73. Rxe3 {[%clk 0:00:04]}  Kb7 {[%clk 0:00:05]} 74. Rb3+ {[%clk 0:00:04]}  Kc8 {[%clk 0:00:05]} 75. Rc3+ {[%clk 0:00:04]}  Kd8 {[%clk 0:00:05]} 76. Rc2 {[%clk 0:00:03]}  Rd3 {[%clk 0:00:04]} 77. Rh2 {[%clk 0:00:03]}  Kc8 {[%clk 0:00:04]} 78. Kc6 {[%clk 0:00:03]}  Kb8 {[%clk 0:00:03]} 79. Rh7 {[%clk 0:00:03]}  Rd1 {[%clk 0:00:02]} 80. Rh8+ {[%clk 0:00:03]}  Ka7 {[%clk 0:00:03]} 81. Kc5 {[%clk 0:00:02]}  Rc1+ {[%clk 0:00:03]} 82. Kd6 {[%clk 0:00:03]}  Ka6 {[%clk 0:00:03]} 83. Rb8 {[%clk 0:00:03]}  Ka5 {[%clk 0:00:03]} 84. Ne7 {[%clk 0:00:02]}  Ka4 {[%clk 0:00:03]} 85. Nc6 {[%clk 0:00:02]}  Ka3 {[%clk 0:00:04]} 86. Kd5 {[%clk 0:00:03]}  Rc2 {[%clk 0:00:04]} 87. Nd4 {[%clk 0:00:03]}  Rc1 {[%clk 0:00:03]} 88. Ke4 {[%clk 0:00:03]}  Ka4 {[%clk 0:00:03]} 89. Kd3 {[%clk 0:00:03]}  Ka5 {[%clk 0:00:04]} 90. Nb3+ {[%clk 0:00:03]}  Ka6 {[%clk 0:00:04]} 91. Nxc1 {[%clk 0:00:04]}  Ka7 {[%clk 0:00:05]} 92. Rb2 {[%clk 0:00:04]}  Ka6 {[%clk 0:00:06]} 93. Kc3 {[%clk 0:00:05]}  Ka5 {[%clk 0:00:07]} 94. Nd3 {[%clk 0:00:06]}  Ka4 {[%clk 0:00:07]} 95. Kc4 {[%clk 0:00:07]}  Ka3 {[%clk 0:00:08]} 96. Rb4 {[%clk 0:00:07]}  Ka2 {[%clk 0:00:08]} 97. Rb3 {[%clk 0:00:08]}  Ka1 {[%clk 0:00:09]} 98. Kc3 {[%clk 0:00:08]}  Ka2 {[%clk 0:00:10]} 99. Kc2 {[%clk 0:00:08]}  Ka1 {[%clk 0:00:11]} 100. Ra3# {[%clk 0:00:09]} 1-0


[Site "https://www.chess.com"]

[Event "Titled Tuesday Blitz November 01 Early 2022"]
[White "Nurmanova, Alua"]
[Black "Stoyanov, Tsvetan"]
[WhiteFideId "13729390"]
[BlackFideId "2917173"]
[WhiteElo "2088"]
[BlackElo "2349"]
[Result "1-0"]
[Round "08"]
[TimeControl "180+1"]
[Date "2022.11.02"]
[WhiteClock "0:00:45"]
[BlackClock "0:00:04"]

1. e4 {[%clk 0:03:00]}  c5 {[%clk 0:03:00]} 2. Nf3 {[%clk 0:03:00]}  d6 {[%clk 0:02:59]} 3. d4 {[%clk 0:03:01]}  cxd4 {[%clk 0:03:00]} 4. Nxd4 {[%clk 0:03:02]}  Nf6 {[%clk 0:03:00]} 5. Nc3 {[%clk 0:03:00]}  a6 {[%clk 0:03:01]} 6. Bg5 {[%clk 0:02:59]}  e6 {[%clk 0:03:01]} 7. f4 {[%clk 0:02:59]}  h6 {[%clk 0:03:01]} 8. Bh4 {[%clk 0:02:58]}  Qb6 {[%clk 0:03:02]} 9. a3 {[%clk 0:02:59]}  Be7 {[%clk 0:03:01]} 10. Bc4 {[%clk 0:02:55]}  Nxe4 {[%clk 0:02:53]} 11. Bxe7 {[%clk 0:02:49]}  Nxc3 {[%clk 0:02:49]} 12. bxc3 {[%clk 0:02:50]}  Kxe7 {[%clk 0:02:49]} 13. O-O {[%clk 0:02:44]}  Nc6 {[%clk 0:02:45]} 14. Kh1 {[%clk 0:02:44]}  Qc5 {[%clk 0:02:43]} 15. Qd3 {[%clk 0:02:39]}  Bd7 {[%clk 0:02:28]} 16. Rae1 {[%clk 0:02:38]}  d5 {[%clk 0:02:03]} 17. Bb3 {[%clk 0:02:22]}  Rhc8 {[%clk 0:01:27]} 18. f5 {[%clk 0:02:07]}  Nxd4 {[%clk 0:01:12]} 19. cxd4 {[%clk 0:02:06]}  Qc3 {[%clk 0:01:12]} 20. fxe6 {[%clk 0:01:50]}  Bxe6 {[%clk 0:01:05]} 21. Qf5 {[%clk 0:01:36]}  Kd6 {[%clk 0:00:47]} 22. Qe5+ {[%clk 0:01:35]}  Kc6 {[%clk 0:00:47]} 23. Re3 {[%clk 0:01:32]}  Qa5 {[%clk 0:00:39]} 24. c4 {[%clk 0:01:30]}  Kb6 {[%clk 0:00:27]} 25. cxd5 {[%clk 0:01:25]}  Qb5 {[%clk 0:00:13]} 26. Rfe1 {[%clk 0:01:13]}  Bd7 {[%clk 0:00:12]} 27. a4 {[%clk 0:01:08]}  Qb4 {[%clk 0:00:12]} 28. Qxg7 {[%clk 0:00:59]}  Ka7 {[%clk 0:00:07]} 29. Qxf7 {[%clk 0:00:58]}  Bxa4 {[%clk 0:00:06]} 30. Bxa4 {[%clk 0:00:57]}  Qxa4 {[%clk 0:00:07]} 31. Re7 {[%clk 0:00:56]}  Qb4 {[%clk 0:00:06]} 32. d6 {[%clk 0:00:53]}  Rf8 {[%clk 0:00:05]} 33. Qd5 {[%clk 0:00:51]}  Rad8 {[%clk 0:00:05]} 34. Qc5+ {[%clk 0:00:49]}  Qxc5 {[%clk 0:00:05]} 35. dxc5 {[%clk 0:00:50]}  Rf5 {[%clk 0:00:04]} 36. c6 {[%clk 0:00:45]} 1-0


[Site "https://www.chess.com"]

[Event "Titled Tuesday Blitz November 01 Early 2022"]
[White "Omariev, Maksim"]
[Black "Balkum, Alexander"]
[WhiteFideId "4193423"]
[BlackFideId "2005069"]
[WhiteElo "2409"]
[BlackElo "2333"]
[Result "0-1"]
[Round "08"]
[TimeControl "180+1"]
[Date "2022.11.02"]
[WhiteClock "0:00:06"]
[BlackClock "0:00:11"]

1. e4 {[%clk 0:03:00]}  c5 {[%clk 0:02:58]} 2. Nf3 {[%clk 0:02:59]}  Nc6 {[%clk 0:02:58]} 3. d4 {[%clk 0:02:59]}  cxd4 {[%clk 0:02:59]} 4. Nxd4 {[%clk 0:03:00]}  Nf6 {[%clk 0:02:59]} 5. Nc3 {[%clk 0:02:58]}  d6 {[%clk 0:02:59]} 6. Bg5 {[%clk 0:02:53]}  e6 {[%clk 0:02:59]} 7. Qd2 {[%clk 0:02:53]}  a6 {[%clk 0:02:59]} 8. O-O-O {[%clk 0:02:54]}  h6 {[%clk 0:03:00]} 9. Bf4 {[%clk 0:02:37]}  Bd7 {[%clk 0:02:07]} 10. Nb3 {[%clk 0:02:23]}  Be7 {[%clk 0:01:59]} 11. Bxd6 {[%clk 0:02:16]}  O-O {[%clk 0:01:55]} 12. Be2 {[%clk 0:02:11]}  b5 {[%clk 0:01:28]} 13. e5 {[%clk 0:02:11]}  Nd5 {[%clk 0:01:18]} 14. Nxd5 {[%clk 0:02:09]}  exd5 {[%clk 0:01:14]} 15. Qxd5 {[%clk 0:02:07]}  Bg5+ {[%clk 0:00:58]} 16. Kb1 {[%clk 0:02:04]}  Re8 {[%clk 0:00:59]} 17. g3 {[%clk 0:01:58]}  Rc8 {[%clk 0:00:44]} 18. f4 {[%clk 0:01:57]}  Be6 {[%clk 0:00:44]} 19. Qe4 {[%clk 0:01:52]}  Be7 {[%clk 0:00:41]} 20. f5 {[%clk 0:01:47]}  Bxb3 {[%clk 0:00:40]} 21. Bxe7 {[%clk 0:01:34]}  Bxc2+ {[%clk 0:00:35]} 22. Qxc2 {[%clk 0:01:29]}  Qxe7 {[%clk 0:00:35]} 23. e6 {[%clk 0:01:15]}  fxe6 {[%clk 0:00:26]} 24. Bh5 {[%clk 0:01:09]}  Rf8 {[%clk 0:00:18]} 25. fxe6 {[%clk 0:00:50]}  Qxe6 {[%clk 0:00:17]} 26. Rhe1 {[%clk 0:00:48]}  Qf6 {[%clk 0:00:15]} 27. Qb3+ {[%clk 0:00:38]}  Kh8 {[%clk 0:00:14]} 28. Ka1 {[%clk 0:00:38]}  Nd4 {[%clk 0:00:13]} 29. Rxd4 {[%clk 0:00:28]}  Qxd4 {[%clk 0:00:14]} 30. Bg6 {[%clk 0:00:24]}  Qd2 {[%clk 0:00:13]} 31. Rb1 {[%clk 0:00:19]}  Rc1 {[%clk 0:00:11]} 32. h4 {[%clk 0:00:16]}  Rff1 {[%clk 0:00:08]} 33. a3 {[%clk 0:00:10]}  Rxb1+ {[%clk 0:00:05]} 34. Bxb1 {[%clk 0:00:11]}  Qd1 {[%clk 0:00:05]} 35. Qxd1 {[%clk 0:00:07]}  Rxd1 {[%clk 0:00:06]} 36. Ka2 {[%clk 0:00:08]}  Rg1 {[%clk 0:00:06]} 37. h5 {[%clk 0:00:07]}  Rxg3 {[%clk 0:00:07]} 38. b4 {[%clk 0:00:03]}  Rg5 {[%clk 0:00:07]} 39. Be4 {[%clk 0:00:02]}  Rxh5 {[%clk 0:00:07]} 40. Bb7 {[%clk 0:00:03]}  Rh2+ {[%clk 0:00:07]} 41. Kb3 {[%clk 0:00:03]}  g5 {[%clk 0:00:08]} 42. Bxa6 {[%clk 0:00:04]}  g4 {[%clk 0:00:08]} 43. Bxb5 {[%clk 0:00:05]}  g3 {[%clk 0:00:09]} 44. a4 {[%clk 0:00:05]}  g2 {[%clk 0:00:10]} 45. a5 {[%clk 0:00:03]}  g1=Q {[%clk 0:00:10]} 46. Bc4 {[%clk 0:00:02]}  Qa7 {[%clk 0:00:08]} 47. a6 {[%clk 0:00:02]}  Rh4 {[%clk 0:00:08]} 48. b5 {[%clk 0:00:02]}  Rxc4 {[%clk 0:00:07]} 49. Kxc4 {[%clk 0:00:02]}  Qb6 {[%clk 0:00:07]} 50. Kd5 {[%clk 0:00:02]}  Qxb5+ {[%clk 0:00:07]} 51. Kd6 {[%clk 0:00:03]}  Qxa6+ {[%clk 0:00:08]} 52. Kc7 {[%clk 0:00:04]}  h5 {[%clk 0:00:07]} 53. Kb8 {[%clk 0:00:04]}  h4 {[%clk 0:00:08]} 54. Kc7 {[%clk 0:00:05]}  h3 {[%clk 0:00:08]} 55. Kb8 {[%clk 0:00:06]}  Qa7+ {[%clk 0:00:08]} 56. Kxa7 {[%clk 0:00:02]}  h2 {[%clk 0:00:09]} 57. Kb8 {[%clk 0:00:03]}  h1=Q {[%clk 0:00:10]} 58. Kc8 {[%clk 0:00:04]}  Qh7 {[%clk 0:00:10]} 59. Kd8 {[%clk 0:00:05]}  Kg7 {[%clk 0:00:10]} 60. Kc8 {[%clk 0:00:05]}  Kf6 {[%clk 0:00:11]} 61. Kd8 {[%clk 0:00:05]}  Ke6 {[%clk 0:00:12]} 62. Ke8 {[%clk 0:00:06]}  Qe7# {[%clk 0:00:11]} 0-1


[Site "https://www.chess.com"]

[Event "Titled Tuesday Blitz November 01 Early 2022"]
[White "Ozdemir, Serhan Berat"]
[Black "Parligras, Mircea-Emilian"]
[WhiteFideId "6374611"]
[BlackFideId "1204297"]
[WhiteElo "2016"]
[BlackElo "2507"]
[Result "1/2-1/2"]
[Round "08"]
[TimeControl "180+1"]
[Date "2022.11.02"]
[WhiteClock "0:00:03"]
[BlackClock "0:00:27"]

1. e4 {[%clk 0:02:51]}  c6 {[%clk 0:03:00]} 2. d4 {[%clk 0:02:51]}  d5 {[%clk 0:03:00]} 3. exd5 {[%clk 0:02:52]}  cxd5 {[%clk 0:03:00]} 4. c4 {[%clk 0:02:53]}  Nf6 {[%clk 0:02:59]} 5. Nc3 {[%clk 0:02:53]}  Nc6 {[%clk 0:02:59]} 6. Bg5 {[%clk 0:02:53]}  Be6 {[%clk 0:02:58]} 7. Be2 {[%clk 0:02:52]}  h6 {[%clk 0:02:48]} 8. Bxf6 {[%clk 0:02:47]}  exf6 {[%clk 0:02:49]} 9. Bf3 {[%clk 0:02:47]}  Bb4 {[%clk 0:02:47]} 10. Ne2 {[%clk 0:02:48]}  O-O {[%clk 0:02:38]} 11. O-O {[%clk 0:02:48]}  Ne7 {[%clk 0:02:37]} 12. c5 {[%clk 0:02:33]}  g5 {[%clk 0:02:25]} 13. Qb3 {[%clk 0:01:46]}  Ba5 {[%clk 0:02:22]} 14. Ng3 {[%clk 0:01:38]}  Rb8 {[%clk 0:02:16]} 15. Rfe1 {[%clk 0:01:28]}  a6 {[%clk 0:02:12]} 16. Qd1 {[%clk 0:01:25]}  f5 {[%clk 0:01:57]} 17. Nh5 {[%clk 0:01:03]}  Ng6 {[%clk 0:01:49]} 18. Be2 {[%clk 0:00:37]}  b6 {[%clk 0:01:33]} 19. cxb6 {[%clk 0:00:20]}  Bxb6 {[%clk 0:01:25]} 20. Bxa6 {[%clk 0:00:20]}  g4 {[%clk 0:01:21]} 21. Qd2 {[%clk 0:00:16]}  Kh7 {[%clk 0:01:18]} 22. Nf4 {[%clk 0:00:14]}  Qg5 {[%clk 0:01:13]} 23. g3 {[%clk 0:00:10]}  Nxf4 {[%clk 0:01:09]} 24. Qxf4 {[%clk 0:00:09]}  Qxf4 {[%clk 0:01:08]} 25. gxf4 {[%clk 0:00:10]}  Bxd4 {[%clk 0:01:09]} 26. Rab1 {[%clk 0:00:04]}  Rxb2 {[%clk 0:00:58]} 27. Rxb2 {[%clk 0:00:03]}  Bxc3 {[%clk 0:00:59]} 28. Rxe6 {[%clk 0:00:03]}  fxe6 {[%clk 0:00:56]} 29. Rb7+ {[%clk 0:00:02]}  Kg6 {[%clk 0:00:56]} 30. a4 {[%clk 0:00:01]}  Ba5 {[%clk 0:00:51]} 31. Bb5 {[%clk 0:00:01]}  Rc8 {[%clk 0:00:49]} 32. Re7 {[%clk 0:00:01]}  Kf6 {[%clk 0:00:49]} 33. Rh7 {[%clk 0:00:02]}  Rc1+ {[%clk 0:00:48]} 34. Kg2 {[%clk 0:00:02]}  Kg6 {[%clk 0:00:48]} 35. Re7 {[%clk 0:00:03]}  Re1 {[%clk 0:00:47]} 36. Be8+ {[%clk 0:00:03]}  Kf6 {[%clk 0:00:46]} 37. Rf7+ {[%clk 0:00:04]}  Kg6 {[%clk 0:00:47]} 38. Ra7+ {[%clk 0:00:04]}  Kf6 {[%clk 0:00:47]} 39. Rxa5 {[%clk 0:00:05]}  Ke7 {[%clk 0:00:47]} 40. Bb5 {[%clk 0:00:05]}  Re4 {[%clk 0:00:46]} 41. Ra7+ {[%clk 0:00:04]}  Kd6 {[%clk 0:00:46]} 42. Rh7 {[%clk 0:00:04]}  Rxf4 {[%clk 0:00:46]} 43. Rxh6 {[%clk 0:00:05]}  Rb4 {[%clk 0:00:44]} 44. h3 {[%clk 0:00:05]}  gxh3+ {[%clk 0:00:44]} 45. Rxh3 {[%clk 0:00:06]}  d4 {[%clk 0:00:44]} 46. f4 {[%clk 0:00:05]}  Kd5 {[%clk 0:00:42]} 47. Rh6 {[%clk 0:00:02]}  Rb2+ {[%clk 0:00:39]} 48. Kf3 {[%clk 0:00:02]}  Rb3+ {[%clk 0:00:40]} 49. Ke2 {[%clk 0:00:02]}  Rb2+ {[%clk 0:00:39]} 50. Kd3 {[%clk 0:00:02]}  Rb3+ {[%clk 0:00:39]} 51. Kd2 {[%clk 0:00:02]}  Rf3 {[%clk 0:00:39]} 52. Bd7 {[%clk 0:00:02]}  Rxf4 {[%clk 0:00:35]} 53. Rxe6 {[%clk 0:00:02]}  Rf2+ {[%clk 0:00:34]} 54. Re2 {[%clk 0:00:03]}  Rf3 {[%clk 0:00:34]} 55. Bb5 {[%clk 0:00:02]}  Kc5 {[%clk 0:00:33]} 56. Re5+ {[%clk 0:00:02]}  Kb4 {[%clk 0:00:33]} 57. Re2 {[%clk 0:00:02]}  Ra3 {[%clk 0:00:31]} 58. Re7 {[%clk 0:00:03]}  Kc5 {[%clk 0:00:30]} 59. Rc7+ {[%clk 0:00:03]}  Kd5 {[%clk 0:00:30]} 60. Rc8 {[%clk 0:00:03]}  Ra2+ {[%clk 0:00:29]} 61. Kd3 {[%clk 0:00:03]}  Ra3+ {[%clk 0:00:30]} 62. Kd2 {[%clk 0:00:04]}  Ra2+ {[%clk 0:00:30]} 63. Rc2 {[%clk 0:00:04]}  Ra3 {[%clk 0:00:30]} 64. Bc6+ {[%clk 0:00:04]}  Ke5 {[%clk 0:00:28]} 65. Bb5 {[%clk 0:00:04]}  Kd5 {[%clk 0:00:27]} 66. Rc8 {[%clk 0:00:03]} 1/2-1/2


[Site "https://www.chess.com"]